[Event "Late-Titled-Tuesday-Blitz-January-30-2024"]
[Site "Chess.com"]
[Date "2024.01.30"]
[Round "7"]
[White "Vasily85"]
[Black "karinachess1"]
[Result "1/2-1/2"]
[WhiteElo "2498"]
[BlackElo "2614"]
[TimeControl "180+1"]
[EndTime "15:19:21 PST"]
[Termination "Game drawn - insufficient material"]

1. Nf3 {[%clk 0:03:00.9]} 1... Nf6 {[%clk 0:02:59.9]} 2. b3 {[%clk 0:02:58.8]}
2... g6 {[%clk 0:02:59.8]} 3. Bb2 {[%clk 0:02:59.3]} 3... Bg7 {[%clk 0:03:00.5]}
4. g3 {[%clk 0:02:58.7]} 4... d6 {[%clk 0:03:01]} 5. Bg2 {[%clk 0:02:58.8]} 5...
e5 {[%clk 0:03:01]} 6. O-O {[%clk 0:02:58.7]} 6... O-O {[%clk 0:03:01.4]} 7. c4
{[%clk 0:02:57.9]} 7... h6 {[%clk 0:03:01.7]} 8. d4 {[%clk 0:02:51.8]} 8... e4
{[%clk 0:02:57.2]} 9. Nfd2 {[%clk 0:02:51.4]} 9... e3 {[%clk 0:02:44.7]} 10.
fxe3 {[%clk 0:02:42.6]} 10... Ng4 {[%clk 0:02:44.8]} 11. Rf3 {[%clk 0:02:35.5]}
11... c5 {[%clk 0:02:31.5]} 12. Nf1 {[%clk 0:02:18.8]} 12... Nc6 {[%clk
0:02:28.9]} 13. h3 {[%clk 0:02:08]} 13... Nf6 {[%clk 0:02:21.5]} 14. dxc5 {[%clk
0:02:02.2]} 14... Ne5 {[%clk 0:02:03]} 15. Bxe5 {[%clk 0:01:33.4]} 15... dxe5
{[%clk 0:02:03.9]} 16. Qxd8 {[%clk 0:01:15.8]} 16... Rxd8 {[%clk 0:02:04.8]} 17.
Nc3 {[%clk 0:01:16.4]} 17... e4 {[%clk 0:01:38.1]} 18. Rf2 {[%clk 0:01:16.1]}
18... Nd7 {[%clk 0:01:36.3]} 19. Rc1 {[%clk 0:01:08.5]} 19... f5 {[%clk
0:01:24.8]} 20. g4 {[%clk 0:00:59.4]} 20... Nxc5 {[%clk 0:01:20.2]} 21. gxf5
{[%clk 0:00:58.1]} 21... gxf5 {[%clk 0:01:19.7]} 22. Ng3 {[%clk 0:00:54.2]}
22... Rf8 {[%clk 0:01:08.4]} 23. Nd5 {[%clk 0:00:53.3]} 23... Be5 {[%clk
0:00:54.6]} 24. Nxf5 {[%clk 0:00:47.4]} 24... Kh7 {[%clk 0:00:47.3]} 25. Nd4
{[%clk 0:00:42.4]} 25... Bh2+ {[%clk 0:00:43.5]} 26. Kf1 {[%clk 0:00:42.3]}
26... Bd7 {[%clk 0:00:29.3]} 27. Nf6+ {[%clk 0:00:41.5]} 27... Kg7 {[%clk
0:00:27.9]} 28. Nxd7 {[%clk 0:00:31.8]} 28... Nxd7 {[%clk 0:00:28.1]} 29. Bxe4
{[%clk 0:00:31.6]} 29... Rxf2+ {[%clk 0:00:24.5]} 30. Kxf2 {[%clk 0:00:32.5]}
30... Rf8+ {[%clk 0:00:25.1]} 31. Kg2 {[%clk 0:00:32.2]} 31... Be5 {[%clk
0:00:21.5]} 32. Bxb7 {[%clk 0:00:30.5]} 32... Nc5 {[%clk 0:00:21]} 33. Bd5
{[%clk 0:00:28.3]} 33... Re8 {[%clk 0:00:21.3]} 34. b4 {[%clk 0:00:25.2]} 34...
Na6 {[%clk 0:00:16.5]} 35. b5 {[%clk 0:00:23.8]} 35... Nc5 {[%clk 0:00:16.1]}
36. Kf3 {[%clk 0:00:20.7]} 36... Kf6 {[%clk 0:00:14.5]} 37. Rg1 {[%clk
0:00:19.9]} 37... Rf8 {[%clk 0:00:13]} 38. Nc6 {[%clk 0:00:12.9]} 38... Bb8
{[%clk 0:00:10.9]} 39. e4 {[%clk 0:00:11.7]} 39... Nd7 {[%clk 0:00:09.6]} 40. a4
{[%clk 0:00:06.4]} 40... Ne5+ {[%clk 0:00:10]} 41. Nxe5 {[%clk 0:00:06.3]} 41...
Kxe5+ {[%clk 0:00:10.2]} 42. Ke3 {[%clk 0:00:05]} 42... Bd6 {[%clk 0:00:10.4]}
43. Kd3 {[%clk 0:00:05]} 43... Rf6 {[%clk 0:00:09.4]} 44. Rg8 {[%clk 0:00:05.1]}
44... Bc5 {[%clk 0:00:09.6]} 45. Re8+ {[%clk 0:00:05.5]} 45... Kd6 {[%clk
0:00:10.1]} 46. e5+ {[%clk 0:00:06.1]} 46... Kd7 {[%clk 0:00:09.8]} 47. Bc6+
{[%clk 0:00:05.3]} 47... Rxc6 {[%clk 0:00:10]} 48. Rh8 {[%clk 0:00:02.7]} 48...
Re6 {[%clk 0:00:10.1]} 49. Ke4 {[%clk 0:00:02.8]} 49... Rg6 {[%clk 0:00:07.8]}
50. Rh7+ {[%clk 0:00:02.7]} 50... Kc8 {[%clk 0:00:07.9]} 51. Kd5 {[%clk
0:00:02.5]} 51... Be3 {[%clk 0:00:07.6]} 52. e6 {[%clk 0:00:02.6]} 52... Kd8
{[%clk 0:00:07.9]} 53. Kd6 {[%clk 0:00:02.7]} 53... Bf4+ {[%clk 0:00:07.8]} 54.
Kd5 {[%clk 0:00:03.2]} 54... Bg5 {[%clk 0:00:07.3]} 55. e4 {[%clk 0:00:03.3]}
55... Bf4 {[%clk 0:00:06.6]} 56. e5 {[%clk 0:00:03.7]} 56... Rg5 {[%clk
0:00:07.2]} 57. Rh8+ {[%clk 0:00:02.4]} 57... Ke7 {[%clk 0:00:07.7]} 58. Rh7+
{[%clk 0:00:03.3]} 58... Ke8 {[%clk 0:00:07.8]} 59. Rxa7 {[%clk 0:00:03.4]}
59... Rxe5+ {[%clk 0:00:07.9]} 60. Kd4 {[%clk 0:00:03.3]} 60... Rxe6 {[%clk
0:00:08.1]} 61. Ra8+ {[%clk 0:00:03.2]} 61... Ke7 {[%clk 0:00:08.4]} 62. c5
{[%clk 0:00:03.5]} 62... Be3+ {[%clk 0:00:08.5]} 63. Kd5 {[%clk 0:00:03.9]}
63... Rg6 {[%clk 0:00:05.5]} 64. c6 {[%clk 0:00:04.1]} 64... Rg5+ {[%clk
0:00:05]} 65. Ke4 {[%clk 0:00:04.1]} 65... Bb6 {[%clk 0:00:04.4]} 66. Rb8 {[%clk
0:00:04.4]} 66... Bc7 {[%clk 0:00:04.1]} 67. Rb7 {[%clk 0:00:04.8]} 67... Kd6
{[%clk 0:00:04.7]} 68. b6 {[%clk 0:00:05.2]} 68... Kxc6 {[%clk 0:00:04.3]} 69.
Rxc7+ {[%clk 0:00:05.3]} 69... Kxb6 {[%clk 0:00:04.9]} 70. Rh7 {[%clk
0:00:05.2]} 70... Rh5 {[%clk 0:00:05.4]} 71. Kf3 {[%clk 0:00:03.3]} 71... Rxh3+
{[%clk 0:00:05.8]} 72. Kg4 {[%clk 0:00:04]} 72... Ra3 {[%clk 0:00:05.7]} 73. Kh5
{[%clk 0:00:03.9]} 73... Ka5 {[%clk 0:00:05.9]} 74. Rxh6 {[%clk 0:00:04.8]}
74... Rxa4 {[%clk 0:00:06.4]} 75. Rg6 {[%clk 0:00:05.5]} 75... Kb4 {[%clk
0:00:06.7]} 76. Rg5 {[%clk 0:00:06.4]} 76... Ra5 {[%clk 0:00:06.3]} 77. Rxa5
{[%clk 0:00:05.1]} 77... Kxa5 {[%clk 0:00:07.2]} 1/2-1/2

[Event "Late-Titled-Tuesday-Blitz-January-30-2024"]
[Site "Chess.com"]
[Date "2024.01.30"]
[Round "7"]
[White "Mikhail_Bryakin"]
[Black "wqws"]
[Result "0-1"]
[WhiteElo "2816"]
[BlackElo "2638"]
[TimeControl "180+1"]
[EndTime "15:19:40 PST"]
[Termination "wqws won by resignation"]

1. e4 {[%clk 0:02:59.3]} 1... e5 {[%clk 0:02:59.7]} 2. d4 {[%clk 0:02:56.2]}
2... exd4 {[%clk 0:02:59.9]} 3. Qxd4 {[%clk 0:02:56.9]} 3... Nc6 {[%clk
0:02:59.9]} 4. Qd3 {[%clk 0:02:57.1]} 4... Nf6 {[%clk 0:02:59.1]} 5. Nc3 {[%clk
0:02:57.4]} 5... Bb4 {[%clk 0:02:58.4]} 6. Bd2 {[%clk 0:02:55.7]} 6... O-O
{[%clk 0:02:58.9]} 7. O-O-O {[%clk 0:02:56.1]} 7... Re8 {[%clk 0:02:59.4]} 8.
Nge2 {[%clk 0:02:52]} 8... d6 {[%clk 0:02:52.9]} 9. a3 {[%clk 0:02:51.4]} 9...
Bc5 {[%clk 0:02:52]} 10. Be1 {[%clk 0:02:26.2]} 10... Rb8 {[%clk 0:02:43.5]} 11.
h3 {[%clk 0:02:11.6]} 11... b5 {[%clk 0:02:43.3]} 12. b4 {[%clk 0:01:58]} 12...
Bb6 {[%clk 0:02:42]} 13. f4 {[%clk 0:01:55]} 13... a5 {[%clk 0:02:41.6]} 14. e5
{[%clk 0:01:45.2]} 14... axb4 {[%clk 0:02:24.1]} 15. exf6 {[%clk 0:01:41.2]}
15... bxc3 {[%clk 0:02:24]} 16. Bxc3 {[%clk 0:01:41.5]} 16... g6 {[%clk
0:02:20.8]} 17. Qg3 {[%clk 0:01:39]} 17... Re3 {[%clk 0:02:13.1]} 18. Qh4 {[%clk
0:01:39.2]} 18... Bc5 {[%clk 0:02:07]} 19. Qh6 {[%clk 0:01:34.5]} 19... Qf8
{[%clk 0:02:06.7]} 20. Qxf8+ {[%clk 0:01:33.6]} 20... Kxf8 {[%clk 0:02:07]} 21.
Kd2 {[%clk 0:01:33.7]} 21... Re8 {[%clk 0:02:02.8]} 22. g4 {[%clk 0:01:26.2]}
22... Be3+ {[%clk 0:01:49.6]} 23. Kd3 {[%clk 0:01:11.5]} 23... b4 {[%clk
0:01:48]} 24. Bxb4 {[%clk 0:01:11.5]} 24... Nxb4+ {[%clk 0:01:34.2]} 25. axb4
{[%clk 0:01:10.7]} 25... Rxb4 {[%clk 0:01:32.6]} 26. Kc3 {[%clk 0:01:00.3]}
26... Bc5 {[%clk 0:01:11.9]} 27. Rh2 {[%clk 0:00:44.9]} 27... Bb7 {[%clk
0:01:06]} 28. h4 {[%clk 0:00:34.6]} 28... Ra8 {[%clk 0:00:55.4]} 29. h5 {[%clk
0:00:27]} 29... Ra3+ {[%clk 0:00:55.2]} 30. Kd2 {[%clk 0:00:25.7]} 30... Be3+
{[%clk 0:00:55.5]} 31. Ke1 {[%clk 0:00:26.3]} 31... g5 {[%clk 0:00:54.7]} 32.
fxg5 {[%clk 0:00:21.4]} 32... Bxg5 {[%clk 0:00:54.5]} 33. Bg2 {[%clk 0:00:20]}
33... Bc8 {[%clk 0:00:50.8]} 34. Rh3 {[%clk 0:00:11.2]} 34... Ra5 {[%clk
0:00:42.8]} 35. Rc3 {[%clk 0:00:10.3]} 35... Ra7 {[%clk 0:00:29.5]} 36. Bf3
{[%clk 0:00:09.2]} 36... Bxf6 {[%clk 0:00:29]} 37. Rb3 {[%clk 0:00:09.6]} 37...
Rxb3 {[%clk 0:00:28.8]} 38. cxb3 {[%clk 0:00:10.5]} 38... Be6 {[%clk 0:00:26.9]}
39. b4 {[%clk 0:00:04.4]} 39... Ra3 {[%clk 0:00:23.8]} 40. Kf2 {[%clk
0:00:04.3]} 40... Rb3 {[%clk 0:00:21.3]} 41. Bd5 {[%clk 0:00:01.9]} 41... Bxd5
{[%clk 0:00:20]} 42. Rxd5 {[%clk 0:00:02.8]} 42... Rxb4 {[%clk 0:00:20.2]} 43.
Kf3 {[%clk 0:00:03.2]} 43... Ke7 {[%clk 0:00:20.4]} 44. Nf4 {[%clk 0:00:02.9]}
44... Be5 {[%clk 0:00:19.9]} 45. Ne2 {[%clk 0:00:02.6]} 45... Ke6 {[%clk
0:00:19.8]} 46. Ra5 {[%clk 0:00:02.8]} 46... c5 {[%clk 0:00:20.1]} 47. Ra8
{[%clk 0:00:02.5]} 47... c4 {[%clk 0:00:20.4]} 48. Re8+ {[%clk 0:00:02.8]} 48...
Kd7 {[%clk 0:00:20.2]} 49. Rf8 {[%clk 0:00:02.8]} 49... Ke7 {[%clk 0:00:20.3]}
50. Rc8 {[%clk 0:00:03.5]} 50... d5 {[%clk 0:00:20.7]} 51. Rc6 {[%clk
0:00:03.3]} 51... Rb3+ {[%clk 0:00:21]} 52. Kf2 {[%clk 0:00:03.2]} 52... c3
{[%clk 0:00:21.5]} 53. Nc1 {[%clk 0:00:02.8]} 53... Rb1 {[%clk 0:00:20.1]} 54.
Nd3 {[%clk 0:00:03]} 54... Bg7 {[%clk 0:00:18.9]} 55. Rc7+ {[%clk 0:00:02.4]}
55... Ke6 {[%clk 0:00:17.7]} 56. Rc6+ {[%clk 0:00:02.8]} 56... Kd7 {[%clk
0:00:17.8]} 57. Rc5 {[%clk 0:00:03.4]} 57... Kd6 {[%clk 0:00:18.1]} 58. Rc8
{[%clk 0:00:04.1]} 58... Rd1 {[%clk 0:00:17.1]} 59. Ke3 {[%clk 0:00:04.7]} 59...
d4+ {[%clk 0:00:16.2]} 60. Ke4 {[%clk 0:00:04.9]} 60... Rd2 {[%clk 0:00:14.6]}
61. g5 {[%clk 0:00:02.9]} 61... Re2+ {[%clk 0:00:14.8]} 62. Kf5 {[%clk
0:00:02.8]} 62... Re3 {[%clk 0:00:14.5]} 63. Nf4 {[%clk 0:00:03]} 63... Rf3
{[%clk 0:00:13.3]} 64. Ke4 {[%clk 0:00:03.2]} 64... Re3+ {[%clk 0:00:12.6]} 65.
Kf5 {[%clk 0:00:04.1]} 65... d3 {[%clk 0:00:12.7]} 66. h6 {[%clk 0:00:03.8]}
66... Bxh6 {[%clk 0:00:12.3]} 67. gxh6 {[%clk 0:00:03.9]} 67... d2 {[%clk
0:00:12.9]} 68. Rd8+ {[%clk 0:00:04.1]} 68... Kc6 {[%clk 0:00:11.4]} 69. Kf6
{[%clk 0:00:03.2]} 69... c2 {[%clk 0:00:11.5]} 70. Rxd2 {[%clk 0:00:02.9]} 70...
c1=Q {[%clk 0:00:11.7]} 71. Rf2 {[%clk 0:00:03.4]} 71... Re4 {[%clk 0:00:11.7]}
72. Nh5 {[%clk 0:00:03.4]} 72... Qxh6+ {[%clk 0:00:11.7]} 73. Kxf7 {[%clk
0:00:04.1]} 73... Qxh5+ {[%clk 0:00:12.1]} 74. Kg7 {[%clk 0:00:04.8]} 74... Qg6+
{[%clk 0:00:12.3]} 0-1

[Event "Late-Titled-Tuesday-Blitz-January-30-2024"]
[Site "Chess.com"]
[Date "2024.01.30"]
[Round "7"]
[White "Onthequiet"]
[Black "sotochess"]
[Result "1-0"]
[WhiteElo "2456"]
[BlackElo "2551"]
[TimeControl "180+1"]
[EndTime "15:20:01 PST"]
[Termination "Onthequiet won on time"]

1. d4 {[%clk 0:03:00]} 1... Nf6 {[%clk 0:02:59.5]} 2. Nf3 {[%clk 0:03:00.2]}
2... g6 {[%clk 0:02:59.4]} 3. Bg5 {[%clk 0:03:00.7]} 3... Bg7 {[%clk 0:02:59.2]}
4. Nbd2 {[%clk 0:03:01.3]} 4... d5 {[%clk 0:02:58.8]} 5. c3 {[%clk 0:03:01.6]}
5... h6 {[%clk 0:02:58.3]} 6. Bh4 {[%clk 0:03:01.7]} 6... c5 {[%clk 0:02:56.7]}
7. e3 {[%clk 0:03:01.9]} 7... Nc6 {[%clk 0:02:56.3]} 8. dxc5 {[%clk 0:03:01.8]}
8... O-O {[%clk 0:02:47.9]} 9. Be2 {[%clk 0:03:01.4]} 9... b6 {[%clk 0:02:40.7]}
10. cxb6 {[%clk 0:02:59.2]} 10... Qxb6 {[%clk 0:02:40.5]} 11. Qb3 {[%clk
0:02:58.9]} 11... Qc7 {[%clk 0:02:40.4]} 12. Bg3 {[%clk 0:02:58.2]} 12... e5
{[%clk 0:02:39.7]} 13. O-O {[%clk 0:02:53.8]} 13... Rb8 {[%clk 0:02:39.4]} 14.
Qa3 {[%clk 0:02:50.1]} 14... Nh5 {[%clk 0:02:34.3]} 15. Nb3 {[%clk 0:02:41.1]}
15... Nxg3 {[%clk 0:02:30.6]} 16. hxg3 {[%clk 0:02:40.7]} 16... Rd8 {[%clk
0:02:30.5]} 17. Rfd1 {[%clk 0:02:32.1]} 17... Bf8 {[%clk 0:02:28.8]} 18. Qa4
{[%clk 0:02:32.2]} 18... Be6 {[%clk 0:02:25]} 19. Rac1 {[%clk 0:02:23.8]} 19...
g5 {[%clk 0:02:20.4]} 20. Bb5 {[%clk 0:02:06.7]} 20... Ne7 {[%clk 0:02:15.2]}
21. Rd2 {[%clk 0:01:45.1]} 21... g4 {[%clk 0:02:02.2]} 22. Nh2 {[%clk
0:01:38.6]} 22... h5 {[%clk 0:01:56.8]} 23. Rcd1 {[%clk 0:01:37.3]} 23... Nc8
{[%clk 0:01:56.2]} 24. Nf1 {[%clk 0:01:32.3]} 24... Nb6 {[%clk 0:01:55.2]} 25.
Qa5 {[%clk 0:01:31.7]} 25... Rdc8 {[%clk 0:01:46.6]} 26. Ba6 {[%clk 0:01:31.3]}
26... Nc4 {[%clk 0:01:39.4]} 27. Qxc7 {[%clk 0:01:23.6]} 27... Rxc7 {[%clk
0:01:39.1]} 28. Bxc4 {[%clk 0:00:49]} 28... dxc4 {[%clk 0:01:15.4]} 29. Nc1
{[%clk 0:00:47.7]} 29... Rcb7 {[%clk 0:01:13.8]} 30. b3 {[%clk 0:00:43.4]} 30...
cxb3 {[%clk 0:01:13.2]} 31. axb3 {[%clk 0:00:44.3]} 31... Bxb3 {[%clk 0:01:13]}
32. Nxb3 {[%clk 0:00:45.2]} 32... Rxb3 {[%clk 0:01:13.3]} 33. Rc2 {[%clk
0:00:41.2]} 33... Rc8 {[%clk 0:01:13.1]} 34. c4 {[%clk 0:00:39.4]} 34... a5
{[%clk 0:01:05]} 35. Nd2 {[%clk 0:00:32.8]} 35... Rd3 {[%clk 0:01:04.3]} 36. Ra1
{[%clk 0:00:33.1]} 36... Bb4 {[%clk 0:01:03.4]} 37. Ne4 {[%clk 0:00:30.9]} 37...
Kg7 {[%clk 0:01:01.8]} 38. c5 {[%clk 0:00:18.4]} 38... Rc6 {[%clk 0:00:51.1]}
39. Rac1 {[%clk 0:00:11.4]} 39... Kg6 {[%clk 0:00:40.2]} 40. Kf1 {[%clk
0:00:11.4]} 40... Kf5 {[%clk 0:00:25.2]} 41. Nd6+ {[%clk 0:00:11]} 41... Ke6
{[%clk 0:00:25.2]} 42. Nb7 {[%clk 0:00:09.4]} 42... Rd7 {[%clk 0:00:24.7]} 43.
Nd6 {[%clk 0:00:07.5]} 43... Ra7 {[%clk 0:00:19.3]} 44. e4 {[%clk 0:00:06.1]}
44... a4 {[%clk 0:00:18.9]} 45. Nf5 {[%clk 0:00:06.1]} 45... a3 {[%clk 0:00:18]}
46. Ne3 {[%clk 0:00:05.8]} 46... a2 {[%clk 0:00:17.4]} 47. Ra1 {[%clk
0:00:05.5]} 47... Rxc5 {[%clk 0:00:17.8]} 48. Rcxa2 {[%clk 0:00:05.7]} 48...
Rxa2 {[%clk 0:00:17.4]} 49. Rxa2 {[%clk 0:00:06.6]} 49... Bc3 {[%clk 0:00:18]}
50. Ke2 {[%clk 0:00:06.4]} 50... Bd4 {[%clk 0:00:17.9]} 51. Nd5 {[%clk
0:00:06.8]} 51... f5 {[%clk 0:00:17.4]} 52. f3 {[%clk 0:00:07]} 52... fxe4
{[%clk 0:00:17.1]} 53. fxe4 {[%clk 0:00:06.9]} 53... Rb5 {[%clk 0:00:17.3]} 54.
Rc2 {[%clk 0:00:06.8]} 54... Rb3 {[%clk 0:00:17.3]} 55. Rd2 {[%clk 0:00:07]}
55... Rxg3 {[%clk 0:00:17]} 56. Ra2 {[%clk 0:00:07.9]} 56... h4 {[%clk
0:00:16.9]} 57. Ra6+ {[%clk 0:00:07.5]} 57... Kd7 {[%clk 0:00:16.9]} 58. Kf1
{[%clk 0:00:08.4]} 58... h3 {[%clk 0:00:16.3]} 59. gxh3 {[%clk 0:00:09]} 59...
gxh3 {[%clk 0:00:17.2]} 60. Rh6 {[%clk 0:00:09.3]} 60... Bg1 {[%clk 0:00:17.4]}
61. Nf6+ {[%clk 0:00:08.2]} 61... Kd8 {[%clk 0:00:16.8]} 62. Nh5 {[%clk
0:00:08.7]} 62... Rg5 {[%clk 0:00:15.3]} 63. Nf6 {[%clk 0:00:08.3]} 63... h2
{[%clk 0:00:15.2]} 64. Nd5 {[%clk 0:00:08.3]} 64... Rg4 {[%clk 0:00:14.2]} 65.
Ke2 {[%clk 0:00:09.2]} 65... Rxe4+ {[%clk 0:00:12.2]} 66. Kf3 {[%clk 0:00:10.1]}
66... Rd4 {[%clk 0:00:12]} 67. Nb6 {[%clk 0:00:09.4]} 67... Ke7 {[%clk 0:00:12]}
68. Nc8+ {[%clk 0:00:07.4]} 68... Kf7 {[%clk 0:00:11.4]} 69. Rh5 {[%clk
0:00:06.7]} 69... Kf6 {[%clk 0:00:10]} 70. Rh8 {[%clk 0:00:06.8]} 70... Rf4+
{[%clk 0:00:09.5]} 71. Kg2 {[%clk 0:00:07.1]} 71... Rf2+ {[%clk 0:00:09.1]} 72.
Kh1 {[%clk 0:00:07.2]} 72... Kf5 {[%clk 0:00:08.9]} 73. Nd6+ {[%clk 0:00:07.2]}
73... Ke6 {[%clk 0:00:08.8]} 74. Ne4 {[%clk 0:00:07.5]} 74... Rf4 {[%clk
0:00:08.3]} 75. Ng5+ {[%clk 0:00:07.5]} 75... Kd5 {[%clk 0:00:08.4]} 76. Rd8+
{[%clk 0:00:07.2]} 76... Kc5 {[%clk 0:00:08.3]} 77. Nh3 {[%clk 0:00:07.6]} 77...
Rf1 {[%clk 0:00:07.6]} 78. Kg2 {[%clk 0:00:07.9]} 78... Re1 {[%clk 0:00:05]} 79.
Rc8+ {[%clk 0:00:08.1]} 79... Kd4 {[%clk 0:00:04.6]} 80. Rd8+ {[%clk 0:00:08.2]}
80... Kc3 {[%clk 0:00:04.3]} 81. Rc8+ {[%clk 0:00:08.2]} 81... Kd3 {[%clk
0:00:04.7]} 82. Rd8+ {[%clk 0:00:08.3]} 82... Ke4 {[%clk 0:00:03.5]} 83. Ng5+
{[%clk 0:00:07.9]} 83... Kf5 {[%clk 0:00:03.3]} 84. Nf3 {[%clk 0:00:08.3]} 84...
Re2+ {[%clk 0:00:03.2]} 85. Kh1 {[%clk 0:00:08.8]} 85... Rf2 {[%clk 0:00:01.8]}
86. Nh4+ {[%clk 0:00:08.4]} 86... Kg4 {[%clk 0:00:01.7]} 87. Ng6 {[%clk
0:00:08.7]} 87... e4 {[%clk 0:00:01.6]} 88. Ne5+ {[%clk 0:00:09]} 88... Kf4
{[%clk 0:00:01.5]} 89. Nc6 {[%clk 0:00:08.5]} 1-0

[Event "Late-Titled-Tuesday-Blitz-January-30-2024"]
[Site "Chess.com"]
[Date "2024.01.30"]
[Round "8"]
[White "SHIVACalypso"]
[Black "TheCavemanChess"]
[Result "0-1"]
[WhiteElo "2489"]
[BlackElo "2692"]
[TimeControl "180+1"]
[EndTime "15:22:43 PST"]
[Termination "TheCavemanChess won by resignation"]

1. Nf3 {[%clk 0:03:00.9]} 1... Nc6 {[%clk 0:02:57.3]} 2. c4 {[%clk 0:03:01.4]}
2... Nf6 {[%clk 0:02:56.8]} 3. Nc3 {[%clk 0:02:58.4]} 3... d6 {[%clk 0:02:55.9]}
4. g3 {[%clk 0:02:57.7]} 4... g6 {[%clk 0:02:56.3]} 5. Bg2 {[%clk 0:02:58]} 5...
Bg7 {[%clk 0:02:57.2]} 6. O-O {[%clk 0:02:58.5]} 6... O-O {[%clk 0:02:58.1]} 7.
d3 {[%clk 0:02:58.7]} 7... e6 {[%clk 0:02:53.7]} 8. Rb1 {[%clk 0:02:58.6]} 8...
d5 {[%clk 0:02:54]} 9. cxd5 {[%clk 0:02:55.8]} 9... exd5 {[%clk 0:02:46.6]} 10.
e4 {[%clk 0:02:55.7]} 10... Re8 {[%clk 0:02:38.2]} 11. Bg5 {[%clk 0:02:43.6]}
11... dxe4 {[%clk 0:02:26.6]} 12. dxe4 {[%clk 0:02:43.6]} 12... Qxd1 {[%clk
0:02:25.1]} 13. Rbxd1 {[%clk 0:02:44.5]} 13... Nxe4 {[%clk 0:02:24.5]} 14. Nxe4
{[%clk 0:02:35.2]} 14... Rxe4 {[%clk 0:02:25.4]} 15. Ne5 {[%clk 0:02:25]} 15...
Rxe5 {[%clk 0:02:23.7]} 16. Bxc6 {[%clk 0:02:25.2]} 16... Rxg5 {[%clk
0:02:23.3]} 17. Rd8+ {[%clk 0:02:24.6]} 17... Bf8 {[%clk 0:02:23.2]} 18. Bd7
{[%clk 0:02:25.1]} 18... Bxd7 {[%clk 0:02:22.1]} 19. Rxa8 {[%clk 0:02:24.8]}
19... Kg7 {[%clk 0:02:19.5]} 20. Rxa7 {[%clk 0:02:24.3]} 20... Bc6 {[%clk
0:02:19.7]} 21. Re1 {[%clk 0:02:18.2]} 21... Bc5 {[%clk 0:02:18.9]} 22. Re2
{[%clk 0:02:15.7]} 22... Bxa7 {[%clk 0:02:18.1]} 0-1

[Event "Late-Titled-Tuesday-Blitz-January-30-2024"]
[Site "Chess.com"]
[Date "2024.01.30"]
[Round "8"]
[White "Felix-Rose"]
[Black "Doomfist26"]
[Result "1-0"]
[WhiteElo "2406"]
[BlackElo "2603"]
[TimeControl "180+1"]
[EndTime "15:22:43 PST"]
[Termination "Felix-Rose won by resignation"]

1. e4 {[%clk 0:03:00]} 1... c5 {[%clk 0:02:58.1]} 2. Nf3 {[%clk 0:03:00.1]} 2...
d6 {[%clk 0:02:57.9]} 3. d4 {[%clk 0:03:00.2]} 3... cxd4 {[%clk 0:02:58.5]} 4.
Nxd4 {[%clk 0:03:01.1]} 4... Nf6 {[%clk 0:02:59.2]} 5. Nc3 {[%clk 0:03:01.4]}
5... Nc6 {[%clk 0:02:59.8]} 6. Bg5 {[%clk 0:03:00.5]} 6... Bd7 {[%clk
0:03:00.3]} 7. Qd2 {[%clk 0:02:58.5]} 7... Rc8 {[%clk 0:03:00.5]} 8. O-O-O
{[%clk 0:02:46.9]} 8... Nxd4 {[%clk 0:03:00.2]} 9. Qxd4 {[%clk 0:02:46.3]} 9...
Qa5 {[%clk 0:03:00.9]} 10. h4 {[%clk 0:02:41.3]} 10... h6 {[%clk 0:02:47.9]} 11.
Be3 {[%clk 0:02:34.7]} 11... Ng4 {[%clk 0:02:25.8]} 12. Qxa7 {[%clk 0:02:30.3]}
12... Qb4 {[%clk 0:02:03.8]} 13. a3 {[%clk 0:02:14.7]} 1-0

[Event "Late-Titled-Tuesday-Blitz-January-30-2024"]
[Site "Chess.com"]
[Date "2024.01.30"]
[Round "8"]
[White "Matalon"]
[Black "Lion-Al-Messi"]
[Result "1-0"]
[WhiteElo "2486"]
[BlackElo "2591"]
[TimeControl "180+1"]
[EndTime "15:24:14 PST"]
[Termination "Matalon won by resignation"]

1. e4 {[%clk 0:02:39.8]} 1... c5 {[%clk 0:03:00]} 2. Nf3 {[%clk 0:02:38.7]} 2...
Nc6 {[%clk 0:03:00.3]} 3. d4 {[%clk 0:02:37.5]} 3... cxd4 {[%clk 0:03:01.2]} 4.
Nxd4 {[%clk 0:02:37.5]} 4... Nf6 {[%clk 0:03:01.9]} 5. Nc3 {[%clk 0:02:37.2]}
5... e5 {[%clk 0:03:02]} 6. Ndb5 {[%clk 0:02:37.1]} 6... d6 {[%clk 0:02:59.3]}
7. Bg5 {[%clk 0:02:37.4]} 7... a6 {[%clk 0:02:59.3]} 8. Na3 {[%clk 0:02:37.5]}
8... b5 {[%clk 0:02:59.8]} 9. Nd5 {[%clk 0:02:37.2]} 9... Be7 {[%clk 0:02:59.5]}
10. Bxf6 {[%clk 0:02:37.6]} 10... Bxf6 {[%clk 0:03:00.4]} 11. c3 {[%clk
0:02:37.7]} 11... Bg5 {[%clk 0:03:00.7]} 12. Nc2 {[%clk 0:02:37.9]} 12... Rb8
{[%clk 0:02:59.2]} 13. Be2 {[%clk 0:02:36.4]} 13... a5 {[%clk 0:02:57.7]} 14.
O-O {[%clk 0:02:35.8]} 14... Be6 {[%clk 0:02:57.7]} 15. Nce3 {[%clk 0:02:25.3]}
15... O-O {[%clk 0:02:57.3]} 16. Qd3 {[%clk 0:02:22.8]} 16... b4 {[%clk
0:02:57]} 17. Rfd1 {[%clk 0:02:13.7]} 17... bxc3 {[%clk 0:02:56.3]} 18. bxc3
{[%clk 0:02:11.9]} 18... a4 {[%clk 0:02:56.6]} 19. Nc4 {[%clk 0:02:08.6]} 19...
f5 {[%clk 0:02:55.6]} 20. Nxd6 {[%clk 0:02:05.4]} 20... fxe4 {[%clk 0:02:52.6]}
21. Nxe4 {[%clk 0:02:04.9]} 21... Bh6 {[%clk 0:02:45.8]} 22. Qa6 {[%clk
0:01:56.7]} 22... Qh4 {[%clk 0:02:44.4]} 23. Qxc6 {[%clk 0:01:52.4]} 23... Rbe8
{[%clk 0:02:25.9]} 24. g3 {[%clk 0:01:40.6]} 24... Qh3 {[%clk 0:02:22.9]} 25.
Nc7 {[%clk 0:01:30]} 25... Re7 {[%clk 0:02:09.1]} 26. Nxe6 {[%clk 0:01:27.7]}
26... Rxe6 {[%clk 0:02:05.5]} 27. Bc4 {[%clk 0:01:27]} 27... Kh8 {[%clk
0:02:05.1]} 28. Qxe6 {[%clk 0:01:25.8]} 28... Qh5 {[%clk 0:02:05.3]} 29. Nd6
{[%clk 0:01:25]} 29... Qf3 {[%clk 0:02:00.4]} 30. Nf7+ {[%clk 0:01:19.9]} 30...
Qxf7 {[%clk 0:02:01.3]} 1-0